[Event "Titled Tuesday Blitz August 1 Early 2023"]
[White "Mika, Tomasz"]
[Black "Mirzanurov, Bulat"]
[WhiteFideId "1132970"]
[BlackFideId "4184521"]
[WhiteElo "2386"]
[BlackElo "2168"]
[Result "1-0"]
[Round "5"]
[TimeControl "180+1"]
[Date "2023.08.01"]
[WhiteClock "0:00:16"]
[BlackClock "0:00:16"]
[Board "213"]

1. e4 {[%clk 0:02:57]}  c5 {[%clk 0:02:57]} 2. Nf3 {[%clk 0:02:57]}  d6 {[%clk 0:02:57]} 3. d4 {[%clk 0:02:57]}  cxd4 {[%clk 0:02:58]} 4. Nxd4 {[%clk 0:02:58]}  Nf6 {[%clk 0:02:56]} 5. Nc3 {[%clk 0:02:57]}  a6 {[%clk 0:02:56]} 6. Bg5 {[%clk 0:02:57]}  Nbd7 {[%clk 0:02:51]} 7. f4 {[%clk 0:02:54]}  Qa5 {[%clk 0:02:50]} 8. Qf3 {[%clk 0:02:50]}  h6 {[%clk 0:02:43]} 9. Bh4 {[%clk 0:02:49]}  e5 {[%clk 0:02:32]} 10. Nb3 {[%clk 0:02:34]}  Qc7 {[%clk 0:02:31]} 11. O-O-O {[%clk 0:02:32]}  Be7 {[%clk 0:02:24]} 12. f5 {[%clk 0:02:26]}  b5 {[%clk 0:02:15]} 13. a3 {[%clk 0:01:54]}  Bb7 {[%clk 0:02:14]} 14. g4 {[%clk 0:01:53]}  O-O-O {[%clk 0:02:00]} 15. Bf2 {[%clk 0:01:37]}  Nc5 {[%clk 0:01:53]} 16. Nxc5 {[%clk 0:01:15]}  dxc5 {[%clk 0:01:51]} 17. Bg2 {[%clk 0:01:05]}  h5 {[%clk 0:01:14]} 18. h3 {[%clk 0:00:55]}  hxg4 {[%clk 0:01:06]} 19. hxg4 {[%clk 0:00:56]}  b4 {[%clk 0:01:02]} 20. axb4 {[%clk 0:00:50]}  cxb4 {[%clk 0:01:02]} 21. Nd5 {[%clk 0:00:32]}  Nxd5 {[%clk 0:00:42]} 22. exd5 {[%clk 0:00:33]}  Bg5+ {[%clk 0:00:40]} 23. Kb1 {[%clk 0:00:32]}  Rhe8 {[%clk 0:00:35]} 24. Qe4 {[%clk 0:00:31]}  Be7 {[%clk 0:00:31]} 25. Rh3 {[%clk 0:00:23]}  Qa5 {[%clk 0:00:22]} 26. c4 {[%clk 0:00:22]}  bxc3 {[%clk 0:00:20]} 27. Rxc3+ {[%clk 0:00:22]}  Kb8 {[%clk 0:00:21]} 28. Rb3 {[%clk 0:00:18]}  Ka8 {[%clk 0:00:17]} 29. Rxb7 {[%clk 0:00:16]}  Kxb7 {[%clk 0:00:17]} 30. d6+ {[%clk 0:00:16]}  Kb8 {[%clk 0:00:16]} 31. Qb7# {[%clk 0:00:16]} 1-0


[Site "https://www.chess.com"]

[Event "Titled Tuesday Blitz August 1 Early 2023"]
[White "Mikhalsky, Vladimir"]
[Black "Vila Dupla, Aurelio"]
[WhiteFideId "14144352"]
[BlackFideId "2203383"]
[WhiteElo "2381"]
[BlackElo "2141"]
[Result "1-0"]
[Round "5"]
[TimeControl "180+1"]
[Date "2023.08.01"]
[WhiteClock "0:00:41"]
[BlackClock "0:00:13"]
[Board "214"]

1. d4 {[%clk 0:03:00]}  Nf6 {[%clk 0:02:58]} 2. c4 {[%clk 0:03:00]}  g6 {[%clk 0:02:58]} 3. f3 {[%clk 0:03:00]}  d5 {[%clk 0:02:57]} 4. cxd5 {[%clk 0:02:59]}  Nxd5 {[%clk 0:02:58]} 5. e4 {[%clk 0:02:59]}  Nb6 {[%clk 0:02:58]} 6. Be3 {[%clk 0:02:59]}  Bg7 {[%clk 0:02:58]} 7. Nc3 {[%clk 0:02:59]}  O-O {[%clk 0:02:58]} 8. Qd2 {[%clk 0:02:59]}  Nc6 {[%clk 0:02:58]} 9. Nge2 {[%clk 0:02:56]}  Qd6 {[%clk 0:02:55]} 10. Nb5 {[%clk 0:02:39]}  Qd7 {[%clk 0:02:54]} 11. Nec3 {[%clk 0:02:36]}  a6 {[%clk 0:02:42]} 12. d5 {[%clk 0:02:37]}  axb5 {[%clk 0:02:35]} 13. Bxb5 {[%clk 0:02:36]}  Qd6 {[%clk 0:01:58]} 14. dxc6 {[%clk 0:02:34]}  bxc6 {[%clk 0:01:37]} 15. Qxd6 {[%clk 0:02:33]}  exd6 {[%clk 0:01:36]} 16. Bxc6 {[%clk 0:02:32]}  Rb8 {[%clk 0:01:36]} 17. Bb5 {[%clk 0:01:57]}  Bd7 {[%clk 0:01:35]} 18. Bxd7 {[%clk 0:01:55]}  Nxd7 {[%clk 0:01:35]} 19. O-O-O {[%clk 0:01:55]}  Rb7 {[%clk 0:01:27]} 20. Bd4 {[%clk 0:01:53]}  Bh6+ {[%clk 0:01:24]} 21. Kc2 {[%clk 0:01:51]}  Rfb8 {[%clk 0:01:25]} 22. b3 {[%clk 0:01:51]}  c5 {[%clk 0:01:21]} 23. Bf2 {[%clk 0:01:51]}  c4 {[%clk 0:01:21]} 24. Rb1 {[%clk 0:01:50]}  cxb3+ {[%clk 0:01:16]} 25. Rxb3 {[%clk 0:01:50]}  Rxb3 {[%clk 0:01:16]} 26. axb3 {[%clk 0:01:50]}  Bg7 {[%clk 0:01:16]} 27. Nd5 {[%clk 0:01:44]}  Ra8 {[%clk 0:00:57]} 28. Nb4 {[%clk 0:01:25]}  d5 {[%clk 0:00:35]} 29. Rd1 {[%clk 0:01:11]}  Bf8 {[%clk 0:00:34]} 30. Be1 {[%clk 0:00:59]}  Nb6 {[%clk 0:00:23]} 31. Nxd5 {[%clk 0:00:52]}  Nxd5 {[%clk 0:00:21]} 32. exd5 {[%clk 0:00:49]}  Ra2+ {[%clk 0:00:21]} 33. Kb1 {[%clk 0:00:49]}  Rxg2 {[%clk 0:00:22]} 34. d6 {[%clk 0:00:41]}  Rg1 {[%clk 0:00:13]} 35. d7 {[%clk 0:00:41]} 1-0


[Site "https://www.chess.com"]

[Event "Titled Tuesday Blitz August 1 Early 2023"]
[White "Eggleston, Thomas A"]
[Black "Larina, Maria"]
[WhiteFideId "412139"]
[BlackFideId "24113182"]
[WhiteElo "2378"]
[BlackElo "2130"]
[Result "1-0"]
[Round "5"]
[TimeControl "180+1"]
[Date "2023.08.01"]
[WhiteClock "0:00:48"]
[BlackClock "0:00:40"]
[Board "215"]

1. e4 {[%clk 0:03:00]}  c6 {[%clk 0:02:58]} 2. Nc3 {[%clk 0:02:59]}  d5 {[%clk 0:02:58]} 3. Nf3 {[%clk 0:03:00]}  Bg4 {[%clk 0:02:59]} 4. Be2 {[%clk 0:03:00]}  dxe4 {[%clk 0:02:56]} 5. Nxe4 {[%clk 0:03:00]}  Nd7 {[%clk 0:02:56]} 6. Ng3 {[%clk 0:02:49]}  Ndf6 {[%clk 0:02:41]} 7. h3 {[%clk 0:02:44]}  Bxf3 {[%clk 0:02:37]} 8. Bxf3 {[%clk 0:02:44]}  e6 {[%clk 0:02:37]} 9. d4 {[%clk 0:02:43]}  Bd6 {[%clk 0:02:36]} 10. O-O {[%clk 0:02:39]}  Qc7 {[%clk 0:02:35]} 11. c4 {[%clk 0:02:30]}  Bxg3 {[%clk 0:02:28]} 12. fxg3 {[%clk 0:02:29]}  Qxg3 {[%clk 0:02:29]} 13. d5 {[%clk 0:02:29]}  Qc7 {[%clk 0:01:41]} 14. dxe6 {[%clk 0:02:23]}  fxe6 {[%clk 0:01:42]} 15. Qe2 {[%clk 0:02:02]}  e5 {[%clk 0:01:31]} 16. Bf4 {[%clk 0:01:57]}  Ne7 {[%clk 0:01:27]} 17. Bxe5 {[%clk 0:01:56]}  Qb6+ {[%clk 0:01:28]} 18. Kh1 {[%clk 0:01:55]}  Kf7 {[%clk 0:01:15]} 19. Bxf6 {[%clk 0:01:36]}  gxf6 {[%clk 0:01:16]} 20. Rae1 {[%clk 0:01:36]}  Rae8 {[%clk 0:00:49]} 21. Qe6+ {[%clk 0:01:33]}  Kg7 {[%clk 0:00:50]} 22. Bh5 {[%clk 0:01:23]}  c5 {[%clk 0:00:43]} 23. Qf7+ {[%clk 0:01:17]}  Kh6 {[%clk 0:00:43]} 24. Rxf6+ {[%clk 0:01:02]}  Kg5 {[%clk 0:00:41]} 25. Rxb6 {[%clk 0:00:56]}  axb6 {[%clk 0:00:42]} 26. Rxe7 {[%clk 0:00:50]}  Ref8 {[%clk 0:00:40]} 27. Qd5+ {[%clk 0:00:48]} 1-0


[Site "https://www.chess.com"]

[Event "Titled Tuesday Blitz August 1 Early 2023"]
[White "Gopal, K.N."]
[Black "Luong Phuong Hanh"]
[WhiteFideId "5001447"]
[BlackFideId "12401013"]
[WhiteElo "2053"]
[BlackElo "2364"]
[Result "0-1"]
[Round "5"]
[TimeControl "180+1"]
[Date "2023.08.01"]
[WhiteClock "0:00:15"]
[BlackClock "0:01:13"]
[Board "217"]

1. c4 {[%clk 0:02:59]}  Nf6 {[%clk 0:02:54]} 2. g3 {[%clk 0:02:57]}  c6 {[%clk 0:02:51]} 3. Bg2 {[%clk 0:02:56]}  d5 {[%clk 0:02:49]} 4. Nf3 {[%clk 0:02:57]}  g6 {[%clk 0:02:47]} 5. b3 {[%clk 0:02:55]}  Bg7 {[%clk 0:02:45]} 6. Bb2 {[%clk 0:02:54]}  O-O {[%clk 0:02:43]} 7. O-O {[%clk 0:02:53]}  Nbd7 {[%clk 0:02:37]} 8. d3 {[%clk 0:02:53]}  Re8 {[%clk 0:02:18]} 9. Nbd2 {[%clk 0:02:43]}  e5 {[%clk 0:02:14]} 10. cxd5 {[%clk 0:02:42]}  cxd5 {[%clk 0:02:09]} 11. e4 {[%clk 0:02:39]}  d4 {[%clk 0:02:05]} 12. Rc1 {[%clk 0:02:31]}  b6 {[%clk 0:02:04]} 13. Nc4 {[%clk 0:02:25]}  Ba6 {[%clk 0:02:03]} 14. Ba3 {[%clk 0:02:05]}  Bxc4 {[%clk 0:01:59]} 15. bxc4 {[%clk 0:02:02]}  Rc8 {[%clk 0:02:00]} 16. Qa4 {[%clk 0:01:57]}  Qc7 {[%clk 0:01:58]} 17. Rc2 {[%clk 0:01:48]}  Bf8 {[%clk 0:01:55]} 18. Bh3 {[%clk 0:01:46]}  Bxa3 {[%clk 0:01:53]} 19. Qxa3 {[%clk 0:01:42]}  Rcd8 {[%clk 0:01:54]} 20. Bxd7 {[%clk 0:01:36]}  Nxd7 {[%clk 0:01:55]} 21. Kg2 {[%clk 0:01:30]}  Nc5 {[%clk 0:01:55]} 22. Nh4 {[%clk 0:01:29]}  Rf8 {[%clk 0:01:53]} 23. f4 {[%clk 0:01:27]}  exf4 {[%clk 0:01:49]} 24. Rxf4 {[%clk 0:01:25]}  Qb7 {[%clk 0:01:40]} 25. Rcf2 {[%clk 0:01:17]}  f5 {[%clk 0:01:38]} 26. Kg1 {[%clk 0:00:53]}  g5 {[%clk 0:01:36]} 27. Rxf5 {[%clk 0:00:49]}  gxh4 {[%clk 0:01:31]} 28. Rg5+ {[%clk 0:00:44]}  Kh8 {[%clk 0:01:30]} 29. Rxf8+ {[%clk 0:00:39]}  Rxf8 {[%clk 0:01:30]} 30. Qb2 {[%clk 0:00:36]}  Ne6 {[%clk 0:01:24]} 31. Re5 {[%clk 0:00:33]}  Qf7 {[%clk 0:01:23]} 32. Qe2 {[%clk 0:00:28]}  hxg3 {[%clk 0:01:17]} 33. hxg3 {[%clk 0:00:27]}  Rg8 {[%clk 0:01:14]} 34. Kg2 {[%clk 0:00:15]}  Nf4+ {[%clk 0:01:13]} 0-1


[Site "https://www.chess.com"]

[Event "Titled Tuesday Blitz August 1 Early 2023"]
[White "Preobrazhenska_D2011"]
[Black "Akylbek2021"]
[WhiteElo "2048"]
[BlackElo "2359"]
[Result "1-0"]
[Round "5"]
[TimeControl "180+1"]
[Date "2023.08.01"]
[WhiteClock "0:00:18"]
[BlackClock "0:00:00"]
[Board "218"]

1. e4 {[%clk 0:03:00]}  e6 {[%clk 0:02:59]} 2. d4 {[%clk 0:03:00]}  d5 {[%clk 0:03:00]} 3. Nc3 {[%clk 0:03:00]}  Bb4 {[%clk 0:03:00]} 4. e5 {[%clk 0:03:01]}  c5 {[%clk 0:02:59]} 5. a3 {[%clk 0:03:01]}  Bxc3+ {[%clk 0:02:59]} 6. bxc3 {[%clk 0:03:02]}  Ne7 {[%clk 0:02:59]} 7. Qg4 {[%clk 0:03:00]}  Qc7 {[%clk 0:02:59]} 8. Bd2 {[%clk 0:02:46]}  g6 {[%clk 0:02:49]} 9. Bd3 {[%clk 0:02:38]}  Nbc6 {[%clk 0:02:48]} 10. Be3 {[%clk 0:02:23]}  Nf5 {[%clk 0:02:39]} 11. Bxf5 {[%clk 0:02:18]}  exf5 {[%clk 0:02:40]} 12. Qd1 {[%clk 0:02:14]}  Be6 {[%clk 0:02:39]} 13. f4 {[%clk 0:02:12]}  cxd4 {[%clk 0:02:14]} 14. cxd4 {[%clk 0:02:13]}  Qa5+ {[%clk 0:02:15]} 15. Bd2 {[%clk 0:02:05]}  Qa4 {[%clk 0:02:07]} 16. Be3 {[%clk 0:01:48]}  Na5 {[%clk 0:02:01]} 17. Nf3 {[%clk 0:01:45]}  Rc8 {[%clk 0:01:59]} 18. Ra2 {[%clk 0:01:19]}  Qc4 {[%clk 0:01:45]} 19. Qb1 {[%clk 0:01:08]}  b5 {[%clk 0:01:42]} 20. Nd2 {[%clk 0:01:02]}  Qc3 {[%clk 0:01:37]} 21. Qxb5+ {[%clk 0:00:57]}  Bd7 {[%clk 0:01:28]} 22. Qe2 {[%clk 0:00:49]}  O-O {[%clk 0:01:10]} 23. O-O {[%clk 0:00:41]}  a6 {[%clk 0:01:06]} 24. Rb1 {[%clk 0:00:37]}  Bb5 {[%clk 0:01:05]} 25. Qf2 {[%clk 0:00:38]}  Bc4 {[%clk 0:00:53]} 26. Nxc4 {[%clk 0:00:36]}  Nxc4 {[%clk 0:00:53]} 27. Rb3 {[%clk 0:00:36]}  Qa5 {[%clk 0:00:50]} 28. Bc1 {[%clk 0:00:36]}  Rc7 {[%clk 0:00:44]} 29. h4 {[%clk 0:00:35]}  h5 {[%clk 0:00:42]} 30. Kh2 {[%clk 0:00:34]}  Rfc8 {[%clk 0:00:43]} 31. Qe2 {[%clk 0:00:32]}  Nb6 {[%clk 0:00:34]} 32. Bd2 {[%clk 0:00:25]}  Qa4 {[%clk 0:00:09]} 33. Rxb6 {[%clk 0:00:25]}  Qxd4 {[%clk 0:00:07]} 34. Rb4 {[%clk 0:00:22]}  Qa7 {[%clk 0:00:06]} 35. Be3 {[%clk 0:00:20]}  Qa8 {[%clk 0:00:02]} 36. Rab2 {[%clk 0:00:20]}  a5 {[%clk 0:00:00]} 37. Rb6 {[%clk 0:00:18]} 1-0


[Site "https://www.chess.com"]

[Event "Titled Tuesday Blitz August 1 Early 2023"]
[White "Slayyy_200"]
[Black "Shapiro, Daniel"]
[BlackFideId "2001780"]
[WhiteElo "2046"]
[BlackElo "2357"]
[Result "0-1"]
[Round "5"]
[TimeControl "180+1"]
[Date "2023.08.01"]
[WhiteClock "0:00:05"]
[BlackClock "0:00:05"]
[Board "219"]

1. e4 {[%clk 0:03:00]}  c5 {[%clk 0:02:59]} 2. Nf3 {[%clk 0:03:00]}  e6 {[%clk 0:02:59]} 3. d4 {[%clk 0:02:57]}  cxd4 {[%clk 0:02:59]} 4. Nxd4 {[%clk 0:02:57]}  a6 {[%clk 0:02:59]} 5. c4 {[%clk 0:02:56]}  Nf6 {[%clk 0:02:55]} 6. Nc3 {[%clk 0:02:55]}  Bb4 {[%clk 0:02:55]} 7. Bg5 {[%clk 0:02:26]}  d6 {[%clk 0:02:52]} 8. Qa4+ {[%clk 0:02:19]}  Nc6 {[%clk 0:02:51]} 9. Nxc6 {[%clk 0:02:16]}  Bxc3+ {[%clk 0:02:52]} 10. bxc3 {[%clk 0:02:16]}  Qd7 {[%clk 0:02:46]} 11. Rd1 {[%clk 0:01:55]}  Nxe4 {[%clk 0:02:17]} 12. Qc2 {[%clk 0:01:30]}  Nxg5 {[%clk 0:01:28]} 13. h4 {[%clk 0:00:52]}  Nf3+ {[%clk 0:01:19]} 14. gxf3 {[%clk 0:00:50]}  Qxc6 {[%clk 0:01:19]} 15. Rg1 {[%clk 0:00:44]}  g6 {[%clk 0:01:09]} 16. Qe4 {[%clk 0:00:32]}  Qxe4+ {[%clk 0:00:58]} 17. fxe4 {[%clk 0:00:33]}  Ke7 {[%clk 0:00:57]} 18. Bg2 {[%clk 0:00:25]}  Rb8 {[%clk 0:00:53]} 19. Ke2 {[%clk 0:00:24]}  Bd7 {[%clk 0:00:53]} 20. Rd2 {[%clk 0:00:22]}  Rhc8 {[%clk 0:00:45]} 21. Rgd1 {[%clk 0:00:20]}  Rxc4 {[%clk 0:00:44]} 22. Rxd6 {[%clk 0:00:20]}  Bb5 {[%clk 0:00:43]} 23. Ke1 {[%clk 0:00:13]}  Rxc3 {[%clk 0:00:26]} 24. Bf1 {[%clk 0:00:13]}  Be8 {[%clk 0:00:21]} 25. R1d2 {[%clk 0:00:11]}  Rc1+ {[%clk 0:00:19]} 26. Ke2 {[%clk 0:00:11]}  Bb5+ {[%clk 0:00:17]} 27. Ke3 {[%clk 0:00:11]}  Rxf1 {[%clk 0:00:15]} 28. f4 {[%clk 0:00:12]}  Re1+ {[%clk 0:00:13]} 29. Kf3 {[%clk 0:00:10]}  Rc8 {[%clk 0:00:10]} 30. Kf2 {[%clk 0:00:10]}  Rcc1 {[%clk 0:00:10]} 31. Kg3 {[%clk 0:00:09]}  Rg1+ {[%clk 0:00:10]} 32. Kf3 {[%clk 0:00:08]}  Rcf1+ {[%clk 0:00:09]} 33. Ke3 {[%clk 0:00:08]}  Rg3+ {[%clk 0:00:08]} 34. Kd4 {[%clk 0:00:07]}  Kxd6 {[%clk 0:00:09]} 35. e5+ {[%clk 0:00:07]}  Ke7 {[%clk 0:00:09]} 36. Ke4 {[%clk 0:00:08]}  Bc6+ {[%clk 0:00:09]} 37. Kd4 {[%clk 0:00:08]}  Rxf4+ {[%clk 0:00:09]} 38. Kc5 {[%clk 0:00:08]}  Rc3+ {[%clk 0:00:07]} 39. Kb6 {[%clk 0:00:08]}  Rb4+ {[%clk 0:00:07]} 40. Kc7 {[%clk 0:00:09]}  Bd5+ {[%clk 0:00:06]} 41. Kb8 {[%clk 0:00:08]}  Re4 {[%clk 0:00:05]} 42. Rb2 {[%clk 0:00:07]}  Rxe5 {[%clk 0:00:05]} 43. Rb6 {[%clk 0:00:07]}  Rh5 {[%clk 0:00:05]} 44. a4 {[%clk 0:00:08]}  Rxh4 {[%clk 0:00:05]} 45. a5 {[%clk 0:00:08]}  Ra4 {[%clk 0:00:05]} 46. Rb2 {[%clk 0:00:06]}  Rxa5 {[%clk 0:00:05]} 47. Rb6 {[%clk 0:00:06]}  Rb5 {[%clk 0:00:05]} 48. Rxb7+ {[%clk 0:00:06]}  Rxb7+ {[%clk 0:00:05]} 49. Ka8 {[%clk 0:00:05]}  Rc8# {[%clk 0:00:05]} 0-1


[Site "https://www.chess.com"]

[Event "Titled Tuesday Blitz August 1 Early 2023"]
[White "Osiecki, Stanislaw"]
[Black "Bashirli, Saadat"]
[WhiteFideId "1102990"]
[BlackFideId "13429990"]
[WhiteElo "2020"]
[BlackElo "2346"]
[Result "0-1"]
[Round "5"]
[TimeControl "180+1"]
[Date "2023.08.01"]
[WhiteClock "0:00:00"]
[BlackClock "0:00:10"]
[Board "220"]

1. e4 {[%clk 0:03:00]}  e5 {[%clk 0:02:59]} 2. Nf3 {[%clk 0:02:58]}  Nc6 {[%clk 0:02:59]} 3. Bb5 {[%clk 0:02:57]}  Bc5 {[%clk 0:02:55]} 4. c3 {[%clk 0:02:57]}  d6 {[%clk 0:02:53]} 5. O-O {[%clk 0:02:55]}  Nf6 {[%clk 0:02:51]} 6. d4 {[%clk 0:02:54]}  exd4 {[%clk 0:02:50]} 7. cxd4 {[%clk 0:02:54]}  Bb4 {[%clk 0:02:43]} 8. d5 {[%clk 0:02:43]}  a6 {[%clk 0:02:43]} 9. Ba4 {[%clk 0:01:59]}  b5 {[%clk 0:02:38]} 10. dxc6 {[%clk 0:01:59]}  bxa4 {[%clk 0:02:36]} 11. Qxa4 {[%clk 0:01:59]}  Bc5 {[%clk 0:02:27]} 12. Bg5 {[%clk 0:01:58]}  O-O {[%clk 0:02:25]} 13. Nc3 {[%clk 0:01:56]}  Bg4 {[%clk 0:02:19]} 14. Nd5 {[%clk 0:01:55]}  Re8 {[%clk 0:02:06]} 15. Bxf6 {[%clk 0:01:10]}  gxf6 {[%clk 0:01:50]} 16. e5 {[%clk 0:01:07]}  Bxf3 {[%clk 0:01:28]} 17. Nxf6+ {[%clk 0:01:02]}  Kf8 {[%clk 0:00:57]} 18. gxf3 {[%clk 0:00:53]}  Re6 {[%clk 0:00:34]} 19. Qh4 {[%clk 0:00:32]}  Rxe5 {[%clk 0:00:19]} 20. Nd7+ {[%clk 0:00:21]}  Ke8 {[%clk 0:00:18]} 21. Qxd8+ {[%clk 0:00:15]}  Rxd8 {[%clk 0:00:17]} 22. Nxe5 {[%clk 0:00:16]}  dxe5 {[%clk 0:00:18]} 23. Rfe1 {[%clk 0:00:15]}  f6 {[%clk 0:00:17]} 24. f4 {[%clk 0:00:15]}  Bd4 {[%clk 0:00:18]} 25. fxe5 {[%clk 0:00:15]}  fxe5 {[%clk 0:00:17]} 26. Re2 {[%clk 0:00:14]}  Ke7 {[%clk 0:00:16]} 27. Kf1 {[%clk 0:00:13]}  Kf6 {[%clk 0:00:15]} 28. Rc1 {[%clk 0:00:13]}  Rb8 {[%clk 0:00:14]} 29. b3 {[%clk 0:00:10]}  Rb5 {[%clk 0:00:14]} 30. f3 {[%clk 0:00:10]}  a5 {[%clk 0:00:14]} 31. Kg2 {[%clk 0:00:10]}  Rb4 {[%clk 0:00:13]} 32. Rb1 {[%clk 0:00:10]}  Rb6 {[%clk 0:00:12]} 33. Re4 {[%clk 0:00:10]}  Rxc6 {[%clk 0:00:12]} 34. Rh4 {[%clk 0:00:08]}  Rc2+ {[%clk 0:00:12]} 35. Kh3 {[%clk 0:00:09]}  Kg6 {[%clk 0:00:11]} 36. a4 {[%clk 0:00:07]}  Re2 {[%clk 0:00:10]} 37. Rg4+ {[%clk 0:00:07]}  Kf6 {[%clk 0:00:10]} 38. Rg2 {[%clk 0:00:06]}  Re3 {[%clk 0:00:10]} 39. Kg3 {[%clk 0:00:07]}  c5 {[%clk 0:00:10]} 40. Rc2 {[%clk 0:00:03]}  e4 {[%clk 0:00:10]} 41. Rf1 {[%clk 0:00:03]}  Rd3 {[%clk 0:00:09]} 42. Kg2 {[%clk 0:00:03]}  e3 {[%clk 0:00:09]} 43. Re2 {[%clk 0:00:02]}  Rxb3 {[%clk 0:00:09]} 44. f4 {[%clk 0:00:01]}  Ra3 {[%clk 0:00:09]} 45. Kf3 {[%clk 0:00:00]}  Rxa4 {[%clk 0:00:10]} 0-1


[Site "https://www.chess.com"]

[Event "Titled Tuesday Blitz August 1 Early 2023"]
[White "Lohani, Sujana"]
[Black "AndresDelgado77"]
[WhiteFideId "12311987"]
[WhiteElo "1946"]
[BlackElo "2342"]
[Result "1-0"]
[Round "5"]
[TimeControl "180+1"]
[Date "2023.08.01"]
[WhiteClock "0:00:04"]
[BlackClock "0:00:00"]
[Board "221"]

1. d4 {[%clk 0:03:00]}  Nf6 {[%clk 0:02:59]} 2. Nf3 {[%clk 0:02:35]}  c5 {[%clk 0:02:57]} 3. d5 {[%clk 0:02:33]}  e6 {[%clk 0:02:56]} 4. c4 {[%clk 0:02:33]}  b5 {[%clk 0:02:55]} 5. dxe6 {[%clk 0:02:23]}  fxe6 {[%clk 0:02:54]} 6. e3 {[%clk 0:01:58]}  bxc4 {[%clk 0:02:52]} 7. Bxc4 {[%clk 0:01:52]}  d5 {[%clk 0:02:39]} 8. Bb5+ {[%clk 0:01:47]}  Bd7 {[%clk 0:02:39]} 9. Qa4 {[%clk 0:01:35]}  Qb6 {[%clk 0:02:15]} 10. Bxd7+ {[%clk 0:01:33]}  Nbxd7 {[%clk 0:02:14]} 11. O-O {[%clk 0:01:33]}  Bd6 {[%clk 0:02:12]} 12. Nc3 {[%clk 0:01:32]}  O-O {[%clk 0:02:10]} 13. Nb5 {[%clk 0:01:14]}  Bb8 {[%clk 0:02:03]} 14. b3 {[%clk 0:01:05]}  Ne4 {[%clk 0:01:58]} 15. Bb2 {[%clk 0:01:01]}  a6 {[%clk 0:01:48]} 16. Nc3 {[%clk 0:01:00]}  Qc7 {[%clk 0:01:38]} 17. Nxe4 {[%clk 0:01:00]}  dxe4 {[%clk 0:01:36]} 18. Qxe4 {[%clk 0:00:57]}  Ra7 {[%clk 0:00:42]} 19. g3 {[%clk 0:00:47]}  e5 {[%clk 0:00:25]} 20. Rad1 {[%clk 0:00:36]}  Kh8 {[%clk 0:00:24]} 21. Ng5 {[%clk 0:00:34]}  Nf6 {[%clk 0:00:24]} 22. Qc4 {[%clk 0:00:29]}  Qe7 {[%clk 0:00:16]} 23. Ne6 {[%clk 0:00:19]}  Rc8 {[%clk 0:00:15]} 24. Ng5 {[%clk 0:00:15]}  h6 {[%clk 0:00:14]} 25. Ne4 {[%clk 0:00:15]}  Nh7 {[%clk 0:00:13]} 26. Rd5 {[%clk 0:00:14]}  Rac7 {[%clk 0:00:10]} 27. Rfd1 {[%clk 0:00:14]}  Rc6 {[%clk 0:00:10]} 28. Rd7 {[%clk 0:00:13]}  Qf8 {[%clk 0:00:10]} 29. Qd5 {[%clk 0:00:11]}  Rg6 {[%clk 0:00:08]} 30. Bxe5 {[%clk 0:00:10]}  Bxe5 {[%clk 0:00:07]} 31. Qxe5 {[%clk 0:00:11]}  Re8 {[%clk 0:00:08]} 32. Qd5 {[%clk 0:00:10]}  Qf3 {[%clk 0:00:07]} 33. Nd6 {[%clk 0:00:08]}  Rf8 {[%clk 0:00:05]} 34. Rf7 {[%clk 0:00:07]}  Rxf7 {[%clk 0:00:04]} 35. Nxf7+ {[%clk 0:00:07]}  Kg8 {[%clk 0:00:04]} 36. Nxh6+ {[%clk 0:00:06]}  Kh8 {[%clk 0:00:02]} 37. Nf7+ {[%clk 0:00:06]}  Kg8 {[%clk 0:00:02]} 38. Ng5+ {[%clk 0:00:06]}  Qxd5 {[%clk 0:00:01]} 39. Rxd5 {[%clk 0:00:06]}  Nxg5 {[%clk 0:00:02]} 40. Rd8+ {[%clk 0:00:05]}  Kh7 {[%clk 0:00:01]} 41. Rd5 {[%clk 0:00:05]}  Nf3+ {[%clk 0:00:01]} 42. Kg2 {[%clk 0:00:05]}  Ne1+ {[%clk 0:00:00]} 43. Kf1 {[%clk 0:00:04]} 1-0


[Site "https://www.chess.com"]

[Event "Titled Tuesday Blitz August 1 Early 2023"]
[White "hsd2016"]
[Black "Hrbek, Stepan"]
[BlackFideId "393479"]
[WhiteElo "2222"]
[BlackElo "2308"]
[Result "1/2-1/2"]
[Round "5"]
[TimeControl "180+1"]
[Date "2023.08.01"]
[WhiteClock "0:00:34"]
[BlackClock "0:00:06"]
[Board "224"]

1. e4 {[%clk 0:03:00]}  e5 {[%clk 0:02:53]} 2. Nf3 {[%clk 0:03:01]}  Nc6 {[%clk 0:02:47]} 3. Bb5 {[%clk 0:03:01]}  a6 {[%clk 0:02:47]} 4. Ba4 {[%clk 0:03:01]}  Nf6 {[%clk 0:02:47]} 5. O-O {[%clk 0:03:00]}  Be7 {[%clk 0:02:47]} 6. Bxc6 {[%clk 0:02:56]}  dxc6 {[%clk 0:02:47]} 7. d3 {[%clk 0:02:54]}  Nd7 {[%clk 0:02:44]} 8. Nbd2 {[%clk 0:02:51]}  O-O {[%clk 0:02:40]} 9. Nc4 {[%clk 0:02:51]}  f6 {[%clk 0:02:40]} 10. Qe2 {[%clk 0:02:49]}  Nc5 {[%clk 0:02:37]} 11. h3 {[%clk 0:02:48]}  Ne6 {[%clk 0:02:35]} 12. Be3 {[%clk 0:02:39]}  c5 {[%clk 0:02:32]} 13. a4 {[%clk 0:02:37]}  a5 {[%clk 0:02:32]} 14. c3 {[%clk 0:02:37]}  b6 {[%clk 0:02:29]} 15. Rfd1 {[%clk 0:02:22]}  Bb7 {[%clk 0:02:17]} 16. Nh4 {[%clk 0:02:15]}  g6 {[%clk 0:02:11]} 17. Qg4 {[%clk 0:02:12]}  Qc8 {[%clk 0:02:07]} 18. Nf5 {[%clk 0:02:08]}  Bd8 {[%clk 0:01:52]} 19. Nxb6 {[%clk 0:02:01]}  cxb6 {[%clk 0:01:49]} 20. Nd6 {[%clk 0:01:59]}  Qd7 {[%clk 0:01:38]} 21. Nxb7 {[%clk 0:01:58]}  f5 {[%clk 0:01:10]} 22. exf5 {[%clk 0:01:57]}  Rxf5 {[%clk 0:01:11]} 23. Qe4 {[%clk 0:01:53]}  Rb8 {[%clk 0:01:12]} 24. Nxd8 {[%clk 0:01:36]}  Rxd8 {[%clk 0:01:08]} 25. g4 {[%clk 0:01:32]}  Rf7 {[%clk 0:00:52]} 26. Qxe5 {[%clk 0:01:31]}  Rdf8 {[%clk 0:00:52]} 27. d4 {[%clk 0:01:28]}  Nf4 {[%clk 0:00:52]} 28. Bxf4 {[%clk 0:01:26]}  Rxf4 {[%clk 0:00:52]} 29. dxc5 {[%clk 0:01:25]}  Qf7 {[%clk 0:00:47]} 30. Qd5 {[%clk 0:01:23]}  Qxd5 {[%clk 0:00:33]} 31. Rxd5 {[%clk 0:01:24]}  Rxf2 {[%clk 0:00:34]} 32. c6 {[%clk 0:01:00]}  R2f6 {[%clk 0:00:17]} 33. c7 {[%clk 0:00:52]}  R6f7 {[%clk 0:00:17]} 34. Rb5 {[%clk 0:00:48]}  Rxc7 {[%clk 0:00:17]} 35. Rxb6 {[%clk 0:00:49]}  Rcf7 {[%clk 0:00:14]} 36. Re1 {[%clk 0:00:40]}  Rf2 {[%clk 0:00:14]} 37. Rb7 {[%clk 0:00:40]}  Rc2 {[%clk 0:00:12]} 38. Ree7 {[%clk 0:00:40]}  Rff2 {[%clk 0:00:12]} 39. Rg7+ {[%clk 0:00:39]}  Kf8 {[%clk 0:00:12]} 40. Rxh7 {[%clk 0:00:40]}  Kg8 {[%clk 0:00:05]} 41. Rhg7+ {[%clk 0:00:37]}  Kf8 {[%clk 0:00:05]} 42. Rgd7 {[%clk 0:00:36]}  Rg2+ {[%clk 0:00:04]} 43. Kf1 {[%clk 0:00:36]}  Ke8 {[%clk 0:00:04]} 44. Rdc7 {[%clk 0:00:32]}  Rgf2+ {[%clk 0:00:03]} 45. Ke1 {[%clk 0:00:33]}  Rfe2+ {[%clk 0:00:04]} 46. Kd1 {[%clk 0:00:32]}  Red2+ {[%clk 0:00:04]} 47. Ke1 {[%clk 0:00:32]}  Re2+ {[%clk 0:00:05]} 48. Kf1 {[%clk 0:00:33]}  Rf2+ {[%clk 0:00:06]} 49. Kg1 {[%clk 0:00:33]}  Rg2+ {[%clk 0:00:06]} 50. Kf1 {[%clk 0:00:34]}  Rgf2+ {[%clk 0:00:06]} 1/2-1/2


[Site "https://www.chess.com"]